bitfinex/quotes_SOLUSD_20250321
["timestamp","ask_amount","ask_price","bid_price","bid_amount"]
[1742539958081,0.03,128.09,128.06,0.063]
[1742539958296,0.03,128.09,128.07,6.74]
[1742539959492,0.03,128.09,128.07,14.5481]
[1742539963798,0.03,128.09,128.07,29.14732472]
[1742539964703,0.03,128.09,128.07,14.5481]
[1742539968778,0.03,128.09,128.08,0.28432314]
[1742539969004,0.03,128.09,128.08,14.88354786]
[1742539969793,0.03,128.09,128.08,41.62511986]
[1742539970094,0.0001,128.1,128.09,55.35691986]
[1742539970402,0.0001,128.1,128.09,194.92381874]
[1742539970599,0.0001,128.1,128.09,136.52691986]
[1742539971777,0.0001,128.1,128.09,144.33391986]
[1742539973489,0.0001,128.1,128.09,202.73081874]
[1742539973797,0.0001,128.1,128.09,144.33391986]
[1742539974105,0.0001,128.1,128.09,145.89437842]
[1742539975323,0.0001,128.1,128.09,144.33391986]
[1742539977894,0.0001,128.1,128.09,145.89463594]
[1742539979017,0.0001,128.1,128.09,204.29153482]
[1742539979325,0.03,128.16,128.15,0.28432314]
[1742539979617,0.03,128.16,128.15,21.62354786]
[1742539981504,0.03,128.16,128.15,29.42684786]
[1742539985018,0.03,128.16,128.15,48.36081986]
[1742539987315,0.03,128.17,128.16,26.71212314]
[1742539987519,0.03,128.17,128.16,41.31134786]
[1742539988500,0.03,128.17,128.16,49.11404786]
[1742539988823,0.03,128.17,128.16,50.67377471]
[1742539989527,0.03,128.17,128.16,49.11404786]
[1742539989921,0.03,128.17,128.16,50.67376481]
[1742539990319,0.03,128.17,128.16,49.11404786]
[1742539991207,0.03,128.17,128.16,42.68624786]
[1742539994128,0.03,128.17,128.16,49.42624786]
[1742539995722,0.03,128.17,128.16,68.36021986]
[1742539998419,0.03,128.17,128.16,149.53021986]
[1742539998819,0.0001,128.17,128.16,149.53021986]
[1742539999137,0.03,128.2,128.19,39.21829514]
[1742539999320,0.03,128.2,128.19,53.81751986]
[1742540000635,0.03,128.2,128.19,61.61841986]
[1742540001244,0.03,128.2,128.19,8.08522314]
[1742540001421,0.03,128.2,128.19,7.02432314]
[1742540002245,0.03,128.2,128.19,6.74]
[1742540006552,0.03,128.2,128.15,34.59922472]
[1742540006553,14.62922472,128.2,128.15,34.59922472]
[1742540006753,14.59922472,128.17,128.12,306.11]
[1742540006955,7.9396,128.19,128.12,224.94]
[1742540006956,14.59922472,128.16,128.12,224.94]
[1742540007130,14.59922472,128.15,128.13,6.74]
[1742540007330,14.59922472,128.16,128.13,6.74]
[1742540007524,14.59922472,128.17,128.13,6.74]
[1742540008028,22.53882472,128.19,128.14,14.88354786]
[1742540008427,14.59922472,128.18,128.14,0.28432314]
[1742540009030,14.59922472,128.18,128.14,8.08822314]
[1742540009843,22.53882472,128.19,128.14,22.68744786]
[1742540010438,14.59922472,128.18,128.14,8.08822314]
[1742540011437,30.33982472,128.19,128.14,22.68744786]
[1742540011747,14.59922472,128.18,128.14,22.68744786]
[1742540012041,14.62922472,128.18,128.14,22.68744786]
[1742540014428,14.62922472,128.18,128.14,8.08822314]
[1742540015155,14.62922472,128.18,128.14,22.68744786]
[1742540016556,0.03,128.18,128.14,22.68744786]
[1742540021455,0.03,128.18,128.15,14.59922472]
[1742540021650,0.03,128.18,128.16,14.59922472]
[1742540021852,0.03,128.18,128.17,6.72]
[1742540022939,0.03,128.18,128.17,14.5221]
[1742540023744,0.03,128.18,128.17,29.40564786]
[1742540024860,0.03,128.18,128.17,6.72]
[1742540029360,0.03,128.18,128.17,14.5221]
[1742540032355,0.03,128.18,128.17,29.12132472]
[1742540033173,0.03,128.18,128.17,29.40564786]
[1742540034673,0.03,128.18,128.17,14.80642314]
[1742540036251,0.03,128.18,128.17,14.66426157]
[1742540036663,0.03,128.18,128.17,14.80642314]
[1742540040970,0.03,128.18,128.17,14.5221]
[1742540041173,0.03,128.18,128.17,6.72]
[1742540041764,0.03,128.18,128.16,6.763]
[1742540042970,0.03,128.18,128.16,14.5655]
[1742540045773,0.03,128.18,128.16,6.763]
[1742540045983,0.03,128.18,128.16,14.5656]
[1742540050879,0.03,128.18,128.16,7.8656]
[1742540051073,0.03,128.18,128.16,14.5456]
[1742540054879,0.03,128.18,128.16,6.743]
[1742540055083,14.62922472,128.18,128.16,6.743]
[1742540056373,0.03,128.18,128.16,6.743]
[1742540057481,0.03,128.18,128.16,14.5456]
[1742540057679,0.03,128.18,128.16,6.743]
[1742540059079,0.03,128.18,128.16,14.5457]
[1742540059580,0.03,128.18,128.16,6.743]
[1742540060588,0.03,128.18,128.16,0.063]
[1742540063884,14.62922472,128.18,128.16,0.063]
[1742540064891,0.03,128.18,128.16,0.063]
[1742540065585,14.62922472,128.18,128.16,0.063]
[1742540065998,0.03,128.18,128.16,0.063]
[1742540068584,14.62922472,128.18,128.16,0.063]
[1742540070800,0.03,128.18,128.16,0.063]
[1742540071893,0.03,128.18,128.16,14.94654786]
[1742540072602,0.03,128.18,128.17,22.40132472]
[1742540072781,0.03,128.18,128.17,7.8021]
[1742540074195,0.03,128.18,128.17,22.68564786]
[1742540075793,0.03,128.18,128.17,41.61961986]
[1742540076096,0.03,128.18,128.17,181.21651874]
[1742540076400,0.0001,128.18,128.17,181.21651874]
[1742540078176,0.0001,128.18,128.17,182.73401874]
[1742540078690,0.03,128.2,128.17,182.73401874]
[1742540078691,0.03,128.2,128.19,20.28432314]
[1742540078995,0.03,128.2,128.19,122.74354786]
[1742540079993,0.03,128.2,128.19,130.54444786]
[1742540092511,0.0001,128.2,128.19,151.03787133]
[1742540092810,0.0001,128.2,128.19,149.47841986]
[1742540093111,0.03,128.21,128.2,19.21829514]
[1742540093312,0.03,128.21,128.2,35.37672479]
[1742540094312,0.03,128.21,128.2,43.17702479]
[1742540096411,0.03,128.21,128.2,41.61781986]
[1742540098024,0.03,128.21,128.2,122.81781986]
[1742540103432,0.03,128.21,128.2,124.37710972]
[1742540104108,0.0001,128.21,128.2,124.37710972]
[1742540104900,0.0001,128.22,128.21,39.21829514]
[1742540105105,0.0001,128.23,128.22,19.21829514]
[1742540105305,0.0001,128.23,128.22,116.57646914]
[1742540105911,0.0001,128.23,128.22,124.37546914]
[1742540109737,0.0001,128.23,128.22,122.81651986]
[1742540131471,0.0001,128.23,128.22,122.87951986]
[1742540142267,0.0001,128.23,128.22,0.34732314]
[1742540142579,0.0001,128.23,128.22,29.40554786]
[1742540144484,0.0001,128.23,128.22,14.80632314]
[1742540145688,0.0001,128.23,128.22,29.40554786]
[1742540146789,0.0001,128.23,128.22,14.80632314]
[1742540149196,0.0001,128.23,128.22,29.40554786]
[1742540153596,0.0001,128.23,128.22,14.80632314]
[1742540154276,0.0001,128.23,128.22,7.00732314]
[1742540154490,0.0001,128.23,128.22,14.80632314]
[1742540156101,0.0001,128.23,128.22,29.40554786]
[1742540159403,0.0001,128.23,128.22,14.80632314]
[1742540163281,0.0001,128.23,128.22,7.00732314]
[1742540164710,0.0001,128.23,128.22,0.063]
[1742540165001,16.20302472,128.23,128.22,0.063]
[1742540165204,24.00142472,128.23,128.22,0.063]
[1742540169794,16.20302472,128.23,128.22,0.063]
[1742540170106,24.00142472,128.23,128.22,0.063]
[1742540195929,14.59932472,128.23,128.22,0.063]
[1742540196928,22.39772472,128.23,128.22,0.063]
[1742540201039,14.59932472,128.23,128.22,0.063]
[1742540201236,0.0001,128.23,128.22,0.063]
[1742540201431,0.0001,128.23,128.22,14.66222472]
[1742540201612,0.0001,128.23,128.22,33.88051986]
[1742540202327,0.0001,128.23,128.22,41.79581986]
[1742540202728,0.0001,128.23,128.22,49.59481986]
[1742540202927,0.0001,128.23,128.22,132.3538135]
[1742540203130,0.0001,128.23,128.22,130.79481986]
[1742540204631,0.0001,128.23,128.22,132.3537547]
[1742540209833,0.0001,128.23,128.22,130.79481986]
[1742540210014,0.0001,128.23,128.22,132.3537511]
[1742540212622,0.0001,128.23,128.22,130.79481986]
[1742540219937,0.0001,128.23,128.22,132.35388432]
[1742540222233,0.0001,128.23,128.22,357.15388432]
[1742540222443,0.0001,128.23,128.22,355.59481986]
[1742540223356,0.0001,128.24,128.23,120.41819514]
[1742540223533,0.0001,128.24,128.23,121.97693654]
[1742540223729,0.0001,128.24,128.23,136.57616126]
[1742540224362,0.0001,128.24,128.23,144.37456126]
[1742540227755,0.03,128.26,128.25,20.28432314]
[1742540227941,0.03,128.26,128.25,141.67741986]
[1742540230161,0.03,128.26,128.25,149.47461986]
[1742540235367,0.03,128.26,128.25,81.48422314]
[1742540235663,0.03,128.26,128.25,88.14422314]
[1742540237360,0.03,128.26,128.25,95.94142314]
[1742540238776,0.03,128.26,128.25,6.94432314]
[1742540238963,0.03,128.26,128.23,0.14216157]
[1742540239267,16.23552472,128.25,128.22,232.6617]
[1742540239468,16.23552472,128.25,128.24,6.66]
[1742540240364,1.6363,128.25,128.24,6.66]
[1742540242052,1.6363,128.25,128.23,6.66]
[1742540243256,1.6363,128.25,128.22,7.862]
[1742540243460,1.6363,128.25,128.23,6.66]
[1742540243650,1.6363,128.25,128.24,6.66]
[1742540247177,0.03,128.26,128.24,14.4578]
[1742540250677,14.62922472,128.26,128.24,6.66]
[1742540251777,14.62922472,128.26,128.24,6.723]
[1742540254081,22.42582472,128.26,128.24,6.723]
[1742540257376,14.59922472,128.25,128.24,0.063]
[1742540257583,22.44842472,128.25,128.24,0.063]
[1742540259486,30.24562472,128.25,128.24,0.063]
[1742540262981,21.5016,128.23,128.22,0.063]
[1742540263163,36.10082472,128.23,128.22,0.063]
[1742540264663,43.89922472,128.23,128.22,0.063]
[1742540265285,36.10082472,128.23,128.22,0.063]
[1742540266662,14.59922472,128.24,128.22,0.063]
[1742540266857,14.59922472,128.24,128.22,6.723]
[1742540268381,14.59922472,128.25,128.22,6.723]
[1742540268774,14.59922472,128.25,128.22,14.5216]
[1742540269676,14.59922472,128.25,128.22,6.723]
[1742540270487,14.59922472,128.25,128.22,14.5219]
[1742540274788,0.03,128.26,128.23,14.88354786]
[1742540275893,0.03,128.26,128.23,14.74138629]
[1742540276201,0.03,128.26,128.24,7.7978]
[1742540279907,0.03,128.26,128.24,22.39702472]
[1742540281000,0.03,128.26,128.25,22.68074786]
[1742540281301,0.03,128.26,128.25,8.08152314]
[1742540281676,0.03,128.26,128.24,7.7975]
[1742540284594,0.03,128.26,128.24,22.39672472]
[1742540287705,0.03,128.26,128.24,22.45972472]
[1742540288407,0.03,128.26,128.25,34.88354786]
[1742540288714,0.03,128.26,128.25,42.68074786]
[1742540289198,0.03,128.26,128.25,61.61471986]
[1742540304823,0.03,128.26,128.25,142.81461986]
[1742540318246,0.03,128.26,128.25,101.48422314]
[1742540318551,0.03,128.26,128.25,108.12422314]
[1742540320751,0.03,128.26,128.25,26.92432314]
[1742540320935,0.03,128.26,128.25,6.92432314]
[1742540321753,0.03,128.26,128.25,14.72152314]
[1742540322055,0.03,128.26,128.25,8.08152314]
[1742540322354,0.03,128.26,128.25,6.92432314]
[1742540323327,0.03,128.26,128.25,14.72152314]
[1742540324060,0.03,128.26,128.25,6.92432314]
[1742540325364,0.03,128.26,128.25,14.72152314]
[1742540326871,0.03,128.26,128.25,6.92432314]
[1742540329063,0.03,128.26,128.25,14.72152314]
[1742540335681,0.03,128.26,128.25,6.92432314]
[1742540337080,0.03,128.26,128.25,0.28432314]
[1742540337258,16.23382472,128.26,128.24,6.703]
[1742540337576,14.59922472,128.25,128.24,0.063]
[1742540338879,22.39642472,128.25,128.24,0.063]
[1742540340382,14.59922472,128.25,128.24,0.063]
[1742540340687,22.39642472,128.25,128.24,0.063]
[1742540344366,16.23382472,128.26,128.24,0.063]
[1742540344569,14.59922472,128.25,128.24,0.063]
[1742540348178,22.39642472,128.25,128.24,0.063]
[1742540348361,22.42642472,128.25,128.24,0.063]
[1742540366020,14.62922472,128.25,128.24,0.063]
[1742540370322,0.03,128.25,128.24,0.063]
[1742540377306,14.62922472,128.25,128.24,0.063]
[1742540378631,0.03,128.25,128.24,0.063]
[1742540400350,14.62922472,128.25,128.24,0.063]
[1742540401022,34.86817358,128.25,128.24,0.063]
[1742540401443,16.21852472,128.25,128.24,0.063]
[1742540401643,14.62922472,128.25,128.24,0.063]
[1742540402244,0.03,128.25,128.24,0.063]
[1742540403447,0.03,128.25,128.24,7.8608]
[1742540404246,0.03,128.25,128.24,0.063]
[1742540405927,0.03,128.25,128.24,20.063]
[1742540406124,0.03,128.25,128.24,35.230871]
[1742540406343,0.03,128.25,128.24,36.779671]
[1742540407058,0.03,128.25,128.24,136.62921986]
[1742540407253,0.03,128.25,128.24,144.76535527]
[1742540407458,0.03,128.25,128.24,143.20661986]
[1742540408170,0.03,128.25,128.24,151.00441986]
[1742540410768,0.03,128.25,128.24,132.354771]
[1742540414782,0.03,128.25,128.24,152.56327894]
[1742540414953,0.03,128.25,128.24,151.00441986]
[1742540416153,0.03,128.25,128.24,125.777371]
[1742540417758,0.03,128.25,128.24,28.14512314]
[1742540418073,14.62922472,128.25,128.24,6.703]
[1742540418279,14.62922472,128.25,128.24,0.063]
[1742540418576,14.62922472,128.25,128.24,6.703]
[1742540419162,14.62922472,128.25,128.24,0.063]
[1742540419364,14.62922472,128.25,128.24,6.703]
[1742540421387,22.42642472,128.25,128.24,0.063]
[1742540423082,14.62922472,128.25,128.24,0.063]
[1742540424287,0.03,128.25,128.24,0.063]
[1742540424685,14.62922472,128.25,128.24,0.063]
[1742540425003,0.03,128.25,128.24,0.34732314]
[1742540425183,0.03,128.25,128.24,28.14512314]
[1742540426672,0.03,128.25,128.24,43.028671]
[1742540427074,0.03,128.25,128.24,28.42944628]
[1742540433492,0.03,128.25,128.24,43.028671]
[1742540435288,0.03,128.25,128.24,124.228571]
[1742540435589,0.03,128.25,128.24,109.62934628]
[1742540436701,0.03,128.25,128.24,142.87821986]
[1742540436878,0.03,128.25,128.24,144.43698549]
[1742540438401,0.03,128.26,128.25,81.1998]
[1742540438601,0.0001,128.26,128.25,115.01731986]
[1742540438806,0.0001,128.26,128.25,122.08301986]
[1742540438990,0.03,128.29,128.28,40.80239514]
[1742540439188,0.0001,128.29,128.28,144.79941263]
[1742540439983,0.0001,128.29,128.28,152.59481263]
[1742540440212,0.0001,128.29,128.28,151.03681986]
[1742540446538,0.0001,128.29,128.28,116.08334786]
[1742540446706,0.0001,128.29,128.28,130.51874786]
[1742540446910,0.0001,128.29,128.28,130.803071]
[1742540449238,0.0001,128.29,128.28,124.163071]
[1742540449438,0.0001,128.29,128.28,130.803071]
[1742540450306,0.0001,128.29,128.28,149.45271986]
[1742540450836,0.0001,128.29,128.28,130.803071]
[1742540451008,0.0001,128.29,128.28,108.40844628]
[1742540451210,0.0001,128.29,128.28,88.12412314]
[1742540451419,0.0001,128.29,128.28,0.14216157]
[1742540451615,14.59932472,128.29,128.27,224.8]
[1742540451842,14.59922472,128.28,128.26,0.28432314]
[1742540452139,14.59922472,128.27,128.25,20.0]
[1742540452840,14.59922472,128.27,128.25,0.28432314]
[1742540453027,14.59922472,128.26,128.25,0.28432314]
[1742540453225,14.59922472,128.26,128.25,6.92432314]
[1742540453837,14.59922472,128.26,128.24,0.063]
[1742540454135,14.59922472,128.25,128.24,0.063]
[1742540454541,22.75212472,128.25,128.24,0.063]
[1742540454732,99.79867246,128.25,128.22,0.063]
[1742540454938,33.24887358,128.23,128.22,0.063]
[1742540457234,18.64964886,128.22,128.19,0.063]
[1742540457438,14.59922472,128.2,128.19,0.063]
[1742540458024,49.20207358,128.2,128.19,0.063]
[1742540458224,41.40177358,128.2,128.19,0.063]
[1742540458529,22.75212472,128.2,128.19,0.063]
[1742540460848,14.59922472,128.21,128.19,0.063]
[1742540461050,14.59922472,128.21,128.2,6.64]
[1742540461552,14.59922472,128.25,128.21,0.28432314]
[1742540461732,14.59922472,128.27,128.22,14.59922472]
[1742540461935,14.59922472,128.27,128.24,0.28432314]
[1742540462136,14.59922472,128.27,128.26,7.7966]
[1742540462740,14.59922472,128.27,128.25,14.437]
[1742540463051,14.59922472,128.26,128.25,6.64]
[1742540464354,14.59922472,128.26,128.25,6.703]
[1742540467144,14.59922472,128.26,128.25,14.5002]
[1742540468158,14.59922472,128.26,128.25,6.703]
[1742540469249,14.59922472,128.27,128.25,6.703]
[1742540469449,14.59922472,128.26,128.25,6.703]
[1742540469971,14.59922472,128.27,128.25,6.703]
[1742540471069,14.59922472,128.27,128.26,7.7966]
[1742540471665,1.5857,128.28,128.26,7.7966]
[1742540471868,14.59922472,128.27,128.26,7.7966]
[1742540473470,14.59922472,128.27,128.25,6.703]
[1742540473674,14.59922472,128.26,128.25,6.703]
[1742540474263,14.59922472,128.26,128.25,14.5002]
[1742540475358,14.59922472,128.27,128.25,14.5002]
[1742540475766,14.59922472,128.26,128.25,14.5002]
[1742540476372,14.59922472,128.26,128.25,0.063]
[1742540476577,6.3137,128.25,128.19,7.8636]
[1742540476769,14.59922472,128.2,128.19,6.703]
[1742540479180,30.49538337,128.2,128.19,6.703]
[1742540479687,71.8401156,128.2,128.16,0.063]
[1742540479977,45.39016674,128.17,128.16,0.063]
[1742540480971,22.69508337,128.17,128.16,0.063]
[1742540487980,22.69508337,128.18,128.16,0.063]
[1742540488766,1.5499,128.21,128.16,0.063]
[1742540488960,22.69508337,128.18,128.16,0.063]
[1742540489887,22.69508337,128.17,128.16,0.063]
[1742540490969,22.69508337,128.18,128.16,0.063]
[1742540491176,22.69508337,128.19,128.16,0.063]
[1742540491359,22.69508337,128.18,128.16,0.063]
[1742540492889,22.69508337,128.19,128.16,7.8657]
[1742540493569,22.69508337,128.18,128.16,7.8657]
[1742540494474,22.69508337,128.18,128.16,0.063]
[1742540494975,22.69508337,128.17,128.16,0.063]
[1742540496978,30.49718337,128.17,128.16,0.063]
[1742540497180,53.19226674,128.17,128.16,0.063]
[1742540497582,22.69508337,128.17,128.16,0.063]
[1742540498190,30.49718337,128.17,128.16,0.063]
[1742540498796,22.69508337,128.17,128.16,0.063]
[1742540499586,30.49718337,128.17,128.16,0.063]
[1742540500782,22.69508337,128.17,128.16,0.063]
[1742540501170,14.52820483,128.17,128.16,0.063]
[1742540506100,22.33030483,128.17,128.16,0.063]
[1742540510800,14.52820483,128.17,128.16,0.063]
[1742540511300,22.33030483,128.17,128.16,0.063]
[1742540512197,14.52820483,128.17,128.16,0.063]
[1742540517805,14.55820483,128.18,128.16,0.063]
[1742540518600,0.03,128.18,128.16,0.063]
[1742540519808,0.03,128.18,128.17,7.8021]
[1742540520492,14.55820483,128.18,128.16,0.063]
[1742540520690,14.52820483,128.17,128.16,0.063]
[1742540521213,72.64102415,128.17,128.16,0.063]
[1742540521509,14.52820483,128.17,128.16,0.063]
[1742540521898,14.52820483,128.17,128.16,6.703]
[1742540527710,14.55820483,128.18,128.16,14.5057]
[1742540527909,0.03,128.18,128.16,14.5057]
[1742540528308,14.55820483,128.18,128.16,14.5057]
[1742540530198,0.03,128.18,128.16,14.5057]
[1742540530614,0.03,128.18,128.16,34.5057]
[1742540534512,0.03,128.18,128.16,14.5057]
[1742540534716,14.52820483,128.17,128.16,6.703]
[1742540536904,22.33030483,128.17,128.16,0.063]
[1742540537110,14.52820483,128.17,128.16,0.063]
[1742540538817,0.03,128.18,128.16,0.063]
[1742540539125,0.03,128.18,128.16,20.34732314]
[1742540540123,0.03,128.18,128.17,7.8021]
[1742540545228,0.03,128.18,128.17,8.37074628]
[1742540545434,0.03,128.18,128.17,22.89895111]
[1742540546014,14.55820483,128.25,128.2,20.0]
[1742540546209,14.55820483,128.25,128.21,6.66]
[1742540546431,14.52820483,128.24,128.21,6.66]
[1742540546733,14.52820483,128.23,128.21,6.66]
[1742540547127,14.52820483,128.22,128.21,6.66]
[1742540547728,14.52820483,128.23,128.21,14.4597]
[1742540548251,14.52820483,128.24,128.21,6.66]
[1742540549844,9.41524483,128.24,128.21,6.66]
[1742540551321,0.03,128.25,128.21,21.18820483]
[1742540551643,0.03,128.25,128.22,7.799]
[1742540552671,14.55820483,128.25,128.22,7.799]
[1742540553335,0.03,128.25,128.22,7.799]
[1742540554540,0.03,128.25,128.22,27.799]
[1742540555340,14.55820483,128.25,128.21,14.4594]
[1742540555642,14.52820483,128.24,128.21,14.4594]
[1742540555936,14.52820483,128.24,128.21,6.66]
[1742540556662,22.32630483,128.24,128.21,6.66]
[1742540557956,14.52820483,128.24,128.21,6.66]
[1742540558559,22.32610483,128.24,128.21,6.66]
[1742540558861,14.55820483,128.25,128.21,6.66]
[1742540559156,14.55820483,128.25,128.21,14.4595]
[1742540559862,0.03,128.25,128.21,28.98770483]
[1742540560857,14.55820483,128.25,128.21,14.4595]
[1742540561165,14.55820483,128.25,128.21,6.66]
[1742540561859,14.52820483,128.24,128.21,6.66]
[1742540563159,22.32620483,128.24,128.21,6.66]
[1742540564565,14.52820483,128.22,128.21,6.66]
[1742540565164,7.7997,128.21,128.17,0.28432314]
[1742540565473,14.52820483,128.2,128.16,27.8654]
[1742540565653,14.52820483,128.2,128.18,6.68]
[1742540565855,14.52820483,128.19,128.16,0.063]
[1742540566051,14.52820483,128.18,128.16,0.063]
[1742540566851,14.52820483,128.19,128.16,0.063]
[1742540567048,14.52820483,128.19,128.16,7.8657]
[1742540567260,14.52820483,128.2,128.17,14.482]
[1742540568166,14.52820483,128.21,128.17,14.482]
[1742540570159,14.52820483,128.2,128.17,6.68]
[1742540570357,14.52820483,128.18,128.17,6.68]
[1742540570965,14.52820483,128.19,128.17,6.68]
[1742540572969,14.52820483,128.19,128.16,7.8657]
[1742540573272,14.52820483,128.19,128.17,6.68]
[1742540578896,22.32910483,128.19,128.17,6.68]
[1742540579475,14.52820483,128.18,128.17,6.68]
[1742540582484,22.32970483,128.18,128.17,6.68]
[1742540582690,22.32970483,128.18,128.16,0.063]
[1742540582887,33.17785369,128.17,128.16,0.063]
[1742540584868,40.97995369,128.17,128.16,0.063]
[1742540587168,99.09277301,128.17,128.16,0.063]
[1742540595717,40.97995369,128.17,128.16,0.063]
[1742540596401,33.17785369,128.17,128.16,0.063]
[1742540596904,40.97995369,128.17,128.16,0.063]
[1742540598090,99.09277301,128.17,128.16,0.063]
[1742540601417,40.97995369,128.17,128.16,0.063]
[1742540602520,99.09277301,128.17,128.16,0.063]
[1742540603732,99.37709615,128.17,128.16,0.063]
[1742540608029,103.26302489,128.17,128.16,0.063]
[1742540615649,0.28432314,128.16,128.15,0.063]
[1742540615833,33.46217683,128.16,128.15,0.063]
[1742540616236,41.26487683,128.16,128.15,0.063]
[1742540617044,38.64964886,128.14,128.13,0.063]
[1742540617248,53.17785369,128.14,128.13,0.063]
[1742540618450,67.36194518,128.14,128.13,0.063]
[1742540619357,60.98175369,128.14,128.13,0.063]
[1742540619647,67.16282673,128.14,128.13,0.063]
[1742540620031,60.98175369,128.14,128.13,0.063]
[1742540622854,67.17530366,128.14,128.13,0.063]
[1742540623153,60.98175369,128.14,128.13,0.063]
[1742540624740,67.26201835,128.14,128.13,0.063]
[1742540625063,69.32280306,128.14,128.13,0.063]
[1742540628462,19.07613357,128.13,128.11,0.063]
[1742540628760,19.07613357,128.13,128.1,0.063]
[1742540628761,33.17785369,128.12,128.1,0.063]
[1742540628939,14.52820483,128.11,128.1,0.063]
[1742540630444,22.33390483,128.11,128.1,0.063]
[1742540630949,41.4100384,128.11,128.1,0.063]
[1742540634665,99.52285772,128.11,128.1,0.063]
[1742540637571,99.38069615,128.11,128.1,0.063]
[1742540639672,19.07613357,128.1,128.09,0.063]
[1742540639847,91.71715772,128.1,128.09,0.063]
[1742540640267,91.57499615,128.1,128.09,0.063]
[1742540640475,14.52820483,128.09,128.08,0.063]
[1742540641674,22.33520483,128.09,128.08,0.063]
[1742540643068,33.17785369,128.09,128.08,0.063]
[1742540647873,14.52820483,128.09,128.08,0.063]
[1742540649558,14.52820483,128.1,128.08,0.063]
[1742540650260,14.52820483,128.11,128.08,1.6137]
[1742540650466,14.52820483,128.1,128.08,1.6137]
[1742540651573,14.52820483,128.09,128.08,1.6137]
[1742540652775,14.52820483,128.09,128.08,0.063]
[1742540655268,14.52820483,128.1,128.08,0.063]
[1742540655470,34.52820483,128.11,128.08,0.063]
[1742540655787,14.52820483,128.1,128.08,0.063]
[1742540655965,0.03,128.09,128.08,0.063]
[1742540663100,0.03,128.09,128.08,22.39880483]
[1742540663396,0.03,128.09,128.08,24.05640483]
[1742540665699,0.03,128.09,128.08,44.1985664]
[1742540666403,0.03,128.09,128.08,29.67036157]
[1742540675214,0.03,128.09,128.08,44.62505111]
[1742540675599,0.03,128.09,128.08,63.27469997]
[1742540676005,0.03,128.09,128.08,69.47599997]
[1742540678817,0.03,128.09,128.08,150.67579997]
[1742540683612,0.03,128.09,128.08,132.02615111]
[1742540690317,0.03,128.09,128.08,125.82485111]
[1742540690522,0.03,128.09,128.08,130.82725111]
[1742540692827,0.03,128.09,128.08,124.16725111]
[1742540693029,0.03,128.09,128.08,130.82725111]
[1742540693434,0.03,128.09,128.08,115.87256157]
[1742540693609,0.03,128.09,128.08,20.063]
[1742540693907,0.03,128.09,128.08,26.723]
[1742540694821,0.03,128.09,128.08,20.063]
[1742540695025,0.03,128.09,128.08,26.723]
[1742540695728,0.03,128.09,128.08,34.5306]
[1742540700034,0.03,128.09,128.08,26.723]
[1742540702337,0.03,128.09,128.08,20.063]
[1742540702638,0.03,128.09,128.08,26.723]
[1742540703342,0.03,128.09,128.08,0.063]
[1742540703343,14.55820483,128.09,128.08,0.063]
[1742540704416,28.55010483,128.09,128.08,0.063]
[1742540717451,47.19975369,128.09,128.08,0.063]
[1742540718141,47.6262384,128.09,128.08,0.063]
[1742540718433,49.1349384,128.09,128.08,0.063]
[1742540721646,49.27709997,128.09,128.08,0.063]
[1742540722350,18.79181043,128.08,128.07,0.063]
[1742540722647,41.55409997,128.08,128.06,0.063]
[1742540722832,20.0,128.05,128.04,0.063]
[1742540723034,34.52820483,128.05,128.04,0.063]